[Event "Titled Tuesday Blitz May 4 2021"]
[White "Przybylski, Wojciech"]
[Black "Sokolov, Andrey M."]
[WhiteFideId "1117599"]
[BlackFideId "4171438"]
[WhiteElo "2317"]
[BlackElo "2349"]
[Result "1-0"]
[Round "07"]
[TimeControl "180+1"]
[Date "2021.05.04"]
[WhiteClock "0:00:47"]
[BlackClock "0:00:42"]

1. d4 {[%clk 0:03:00]}  Nf6 {[%clk 0:02:46]} 2. c4 {[%clk 0:02:52]}  g6 {[%clk 0:02:45]} 3. Nf3 {[%clk 0:02:48]}  Bg7 {[%clk 0:02:45]} 4. Nc3 {[%clk 0:02:45]}  O-O {[%clk 0:02:45]} 5. e4 {[%clk 0:02:44]}  d6 {[%clk 0:02:44]} 6. Be2 {[%clk 0:02:44]}  e5 {[%clk 0:02:44]} 7. O-O {[%clk 0:02:43]}  Nbd7 {[%clk 0:02:43]} 8. h3 {[%clk 0:02:42]}  a5 {[%clk 0:02:42]} 9. Be3 {[%clk 0:02:40]}  exd4 {[%clk 0:02:38]} 10. Nxd4 {[%clk 0:02:40]}  Nc5 {[%clk 0:02:38]} 11. f3 {[%clk 0:02:39]}  Re8 {[%clk 0:02:33]} 12. Qd2 {[%clk 0:02:38]}  c6 {[%clk 0:02:31]} 13. Rad1 {[%clk 0:02:35]}  a4 {[%clk 0:02:24]} 14. Nxc6 {[%clk 0:02:33]}  bxc6 {[%clk 0:02:22]} 15. Bxc5 {[%clk 0:02:33]}  d5 {[%clk 0:02:15]} 16. cxd5 {[%clk 0:02:29]}  cxd5 {[%clk 0:02:15]} 17. Bb5 {[%clk 0:02:20]}  Bd7 {[%clk 0:02:12]} 18. exd5 {[%clk 0:02:05]}  Bxb5 {[%clk 0:02:02]} 19. Nxb5 {[%clk 0:02:05]}  Nd7 {[%clk 0:01:53]} 20. Bd4 {[%clk 0:01:54]}  Ne5 {[%clk 0:01:52]} 21. d6 {[%clk 0:01:34]}  Nc4 {[%clk 0:01:50]} 22. Qc3 {[%clk 0:01:25]}  Bxd4+ {[%clk 0:01:21]} 23. Qxd4 {[%clk 0:01:17]}  Ne3 {[%clk 0:01:20]} 24. Nc7 {[%clk 0:01:15]}  Nxf1 {[%clk 0:01:12]} 25. Nxe8 {[%clk 0:01:09]}  Qxe8 {[%clk 0:01:12]} 26. d7 {[%clk 0:01:02]}  Qd8 {[%clk 0:01:06]} 27. Kxf1 {[%clk 0:00:58]}  h5 {[%clk 0:00:48]} 28. Re1 {[%clk 0:00:56]}  Qf8 {[%clk 0:00:42]} 29. Qe4 {[%clk 0:00:47]} 1-0


[Site "https://www.chess.com"]

[Event "Titled Tuesday Blitz May 4 2021"]
[White "Quirke, Jeffrey"]
[Black "Rorrer, Grayson"]
[WhiteFideId "2013029"]
[BlackFideId "30944996"]
[WhiteElo "2256"]
[BlackElo "2386"]
[Result "1-0"]
[Round "07"]
[TimeControl "180+1"]
[Date "2021.05.04"]
[WhiteClock "0:00:26"]
[BlackClock "0:01:14"]

1. d4 {[%clk 0:03:00]}  Nf6 {[%clk 0:02:59]} 2. c4 {[%clk 0:03:01]}  e6 {[%clk 0:02:59]} 3. Nc3 {[%clk 0:03:01]}  Bb4 {[%clk 0:03:00]} 4. e3 {[%clk 0:03:02]}  b6 {[%clk 0:03:00]} 5. Bd2 {[%clk 0:03:01]}  Bb7 {[%clk 0:03:00]} 6. Nf3 {[%clk 0:03:02]}  O-O {[%clk 0:03:00]} 7. Bd3 {[%clk 0:03:00]}  d5 {[%clk 0:03:00]} 8. cxd5 {[%clk 0:02:58]}  exd5 {[%clk 0:03:01]} 9. O-O {[%clk 0:02:56]}  Nbd7 {[%clk 0:03:01]} 10. Rc1 {[%clk 0:02:52]}  c6 {[%clk 0:03:01]} 11. Ne5 {[%clk 0:02:50]}  Re8 {[%clk 0:02:59]} 12. f4 {[%clk 0:02:49]}  Bxc3 {[%clk 0:02:55]} 13. Bxc3 {[%clk 0:02:47]}  c5 {[%clk 0:02:53]} 14. Be1 {[%clk 0:02:40]}  Ne4 {[%clk 0:02:40]} 15. Bxe4 {[%clk 0:02:38]}  dxe4 {[%clk 0:02:38]} 16. Nxd7 {[%clk 0:02:38]}  Qxd7 {[%clk 0:02:39]} 17. dxc5 {[%clk 0:02:33]}  Qxd1 {[%clk 0:02:38]} 18. Rxd1 {[%clk 0:02:33]}  bxc5 {[%clk 0:02:38]} 19. Ba5 {[%clk 0:02:18]}  Ba6 {[%clk 0:02:36]} 20. Rf2 {[%clk 0:02:05]}  Bd3 {[%clk 0:02:36]} 21. Rc1 {[%clk 0:02:05]}  c4 {[%clk 0:02:34]} 22. f5 {[%clk 0:02:01]}  Rab8 {[%clk 0:02:31]} 23. Bc3 {[%clk 0:01:59]}  Rb6 {[%clk 0:02:25]} 24. g4 {[%clk 0:01:58]}  a5 {[%clk 0:02:19]} 25. Kg2 {[%clk 0:01:55]}  a4 {[%clk 0:02:19]} 26. a3 {[%clk 0:01:54]}  Rh6 {[%clk 0:02:07]} 27. Kg3 {[%clk 0:01:52]}  Rd6 {[%clk 0:01:56]} 28. h4 {[%clk 0:01:50]}  f6 {[%clk 0:01:56]} 29. Kf4 {[%clk 0:01:47]}  Kf7 {[%clk 0:01:54]} 30. Rg1 {[%clk 0:01:47]}  Rd5 {[%clk 0:01:53]} 31. g5 {[%clk 0:01:39]}  fxg5+ {[%clk 0:01:51]} 32. Rxg5 {[%clk 0:01:31]}  Rg8 {[%clk 0:01:44]} 33. h5 {[%clk 0:01:26]}  Rd6 {[%clk 0:01:37]} 34. Rfg2 {[%clk 0:01:18]}  g6 {[%clk 0:01:37]} 35. fxg6+ {[%clk 0:01:06]}  hxg6 {[%clk 0:01:38]} 36. h6 {[%clk 0:01:03]}  Rdd8 {[%clk 0:01:17]} 37. h7 {[%clk 0:01:03]}  Rh8 {[%clk 0:01:17]} 38. Bxh8 {[%clk 0:00:47]}  Rxh8 {[%clk 0:01:18]} 39. Rh2 {[%clk 0:00:42]}  Kg7 {[%clk 0:01:15]} 40. Ra5 {[%clk 0:00:31]}  Kf6 {[%clk 0:01:15]} 41. Ra6+ {[%clk 0:00:29]}  Kg7 {[%clk 0:01:14]} 42. Kg5 {[%clk 0:00:26]} 1-0


[Site "https://www.chess.com"]

[Event "Titled Tuesday Blitz May 4 2021"]
[White "Quparadze, Giga"]
[Black "Nakamura, Hikaru"]
[WhiteFideId "13602250"]
[BlackFideId "2016192"]
[WhiteElo "2658"]
[BlackElo "2900"]
[Result "1-0"]
[Round "07"]
[TimeControl "180+1"]
[Date "2021.05.04"]
[WhiteClock "0:00:58"]
[BlackClock "0:00:21"]

1. e4 {[%clk 0:03:00]}  c6 {[%clk 0:02:58]} 2. d4 {[%clk 0:03:00]}  d5 {[%clk 0:02:57]} 3. Nc3 {[%clk 0:03:00]}  dxe4 {[%clk 0:02:55]} 4. Nxe4 {[%clk 0:03:01]}  Nf6 {[%clk 0:02:55]} 5. Nxf6+ {[%clk 0:03:01]}  gxf6 {[%clk 0:02:56]} 6. c3 {[%clk 0:02:56]}  Bf5 {[%clk 0:02:55]} 7. Nf3 {[%clk 0:02:57]}  e6 {[%clk 0:02:55]} 8. g3 {[%clk 0:02:56]}  Bg6 {[%clk 0:02:55]} 9. Bg2 {[%clk 0:02:56]}  Bd6 {[%clk 0:02:55]} 10. O-O {[%clk 0:02:56]}  Nd7 {[%clk 0:02:54]} 11. c4 {[%clk 0:02:55]}  O-O {[%clk 0:02:54]} 12. d5 {[%clk 0:02:54]}  Ne5 {[%clk 0:02:41]} 13. Nxe5 {[%clk 0:02:46]}  Bxe5 {[%clk 0:02:42]} 14. dxc6 {[%clk 0:02:47]}  bxc6 {[%clk 0:02:42]} 15. Bxc6 {[%clk 0:02:45]}  Rc8 {[%clk 0:02:42]} 16. Bg2 {[%clk 0:02:38]}  Qxd1 {[%clk 0:02:38]} 17. Rxd1 {[%clk 0:02:38]}  Rxc4 {[%clk 0:02:38]} 18. Bh6 {[%clk 0:02:32]}  Bxb2 {[%clk 0:01:50]} 19. Bxf8 {[%clk 0:02:31]}  Bxa1 {[%clk 0:01:50]} 20. Bh6 {[%clk 0:02:06]}  Bd4 {[%clk 0:01:49]} 21. Bf1 {[%clk 0:02:06]}  Ra4 {[%clk 0:01:18]} 22. Rc1 {[%clk 0:01:58]}  Bxf2+ {[%clk 0:01:18]} 23. Kxf2 {[%clk 0:01:50]}  Rxa2+ {[%clk 0:01:18]} 24. Ke3 {[%clk 0:01:49]}  Rc2 {[%clk 0:01:18]} 25. Rxc2 {[%clk 0:01:46]}  Bxc2 {[%clk 0:01:18]} 26. Ba6 {[%clk 0:01:47]}  f5 {[%clk 0:01:14]} 27. Kf2 {[%clk 0:01:40]}  f6 {[%clk 0:01:11]} 28. Be3 {[%clk 0:01:40]}  Kf7 {[%clk 0:01:12]} 29. Bxa7 {[%clk 0:01:40]}  Bb3 {[%clk 0:01:12]} 30. Bc5 {[%clk 0:01:39]}  Ba2 {[%clk 0:01:10]} 31. Bc8 {[%clk 0:01:39]}  Bd5 {[%clk 0:01:10]} 32. Ke3 {[%clk 0:01:39]}  Ba2 {[%clk 0:01:10]} 33. Bd7 {[%clk 0:01:38]}  Bd5 {[%clk 0:01:10]} 34. Bd6 {[%clk 0:01:38]}  Ba2 {[%clk 0:01:10]} 35. Kd4 {[%clk 0:01:38]}  Kg6 {[%clk 0:01:06]} 36. Be8+ {[%clk 0:01:36]}  Kg5 {[%clk 0:01:06]} 37. Ke3 {[%clk 0:01:28]}  e5 {[%clk 0:01:03]} 38. Be7 {[%clk 0:01:28]}  Bd5 {[%clk 0:00:54]} 39. Kf2 {[%clk 0:01:27]}  f4 {[%clk 0:00:52]} 40. h4+ {[%clk 0:01:19]}  Kf5 {[%clk 0:00:50]} 41. gxf4 {[%clk 0:01:17]}  exf4 {[%clk 0:00:50]} 42. Bd7+ {[%clk 0:01:16]}  Kg6 {[%clk 0:00:47]} 43. Bg4 {[%clk 0:01:16]}  h5 {[%clk 0:00:40]} 44. Bd1 {[%clk 0:01:15]}  Be4 {[%clk 0:00:28]} 45. Bd6 {[%clk 0:01:15]}  Bb1 {[%clk 0:00:28]} 46. Bxf4 {[%clk 0:01:15]}  Bf5 {[%clk 0:00:29]} 47. Ke3 {[%clk 0:01:15]}  Bb1 {[%clk 0:00:29]} 48. Ba4 {[%clk 0:01:14]}  Kf7 {[%clk 0:00:27]} 49. Bc7 {[%clk 0:01:13]}  Bf5 {[%clk 0:00:26]} 50. Kf4 {[%clk 0:01:13]}  Bg4 {[%clk 0:00:26]} 51. Bc6 {[%clk 0:01:13]}  Be6 {[%clk 0:00:24]} 52. Be4 {[%clk 0:01:12]}  Bb3 {[%clk 0:00:23]} 53. Bf5 {[%clk 0:01:09]}  Bc4 {[%clk 0:00:23]} 54. Ke4 {[%clk 0:01:00]}  Bb3 {[%clk 0:00:22]} 55. Kd4 {[%clk 0:01:00]}  Ba2 {[%clk 0:00:23]} 56. Kc5 {[%clk 0:01:00]}  Be6 {[%clk 0:00:20]} 57. Bxe6+ {[%clk 0:00:58]}  Kxe6 {[%clk 0:00:21]} 58. Kd4 {[%clk 0:00:58]}  Kf5 {[%clk 0:00:21]} 1-0


[Site "https://www.chess.com"]

[Event "Titled Tuesday Blitz May 4 2021"]
[White "Radu, David Cr."]
[Black "Tokman, Ariel"]
[WhiteFideId "1265717"]
[BlackFideId "117420"]
[WhiteElo "1596"]
[BlackElo "2345"]
[Result "0-1"]
[Round "07"]
[TimeControl "180+1"]
[Date "2021.05.04"]
[WhiteClock "0:00:20"]
[BlackClock "0:00:15"]

1. e4 {[%clk 0:03:00]}  c5 {[%clk 0:03:00]} 2. Nc3 {[%clk 0:03:00]}  Nc6 {[%clk 0:02:59]} 3. Bb5 {[%clk 0:03:00]}  e6 {[%clk 0:02:53]} 4. Bxc6 {[%clk 0:02:58]}  dxc6 {[%clk 0:02:52]} 5. f4 {[%clk 0:02:55]}  b6 {[%clk 0:02:53]} 6. Nf3 {[%clk 0:02:54]}  Ne7 {[%clk 0:02:53]} 7. d3 {[%clk 0:02:54]}  g6 {[%clk 0:02:52]} 8. O-O {[%clk 0:02:54]}  Bg7 {[%clk 0:02:53]} 9. e5 {[%clk 0:02:50]}  O-O {[%clk 0:02:52]} 10. Ne4 {[%clk 0:02:50]}  Nf5 {[%clk 0:02:43]} 11. g4 {[%clk 0:02:40]}  Nd4 {[%clk 0:02:43]} 12. c3 {[%clk 0:02:35]}  Nxf3+ {[%clk 0:02:41]} 13. Qxf3 {[%clk 0:02:36]}  c4 {[%clk 0:02:15]} 14. d4 {[%clk 0:02:33]}  Bd7 {[%clk 0:01:48]} 15. Be3 {[%clk 0:02:16]}  c5 {[%clk 0:01:42]} 16. g5 {[%clk 0:02:04]}  cxd4 {[%clk 0:01:27]} 17. Bxd4 {[%clk 0:02:05]}  Bc6 {[%clk 0:01:20]} 18. Nf6+ {[%clk 0:02:05]}  Bxf6 {[%clk 0:01:19]} 19. Qxc6 {[%clk 0:02:05]}  Be7 {[%clk 0:01:18]} 20. Rad1 {[%clk 0:02:02]}  Rc8 {[%clk 0:01:15]} 21. Qg2 {[%clk 0:01:56]}  Qc7 {[%clk 0:01:12]} 22. Rf3 {[%clk 0:01:51]}  h5 {[%clk 0:01:04]} 23. gxh6 {[%clk 0:01:22]}  Kh7 {[%clk 0:01:03]} 24. f5 {[%clk 0:01:15]}  exf5 {[%clk 0:01:00]} 25. Rxf5 {[%clk 0:01:10]}  Qc6 {[%clk 0:00:57]} 26. Rf3 {[%clk 0:01:08]}  Qe6 {[%clk 0:00:49]} 27. Rdf1 {[%clk 0:01:03]}  Rc7 {[%clk 0:00:35]} 28. Rf6 {[%clk 0:00:51]}  Bxf6 {[%clk 0:00:31]} 29. Rxf6 {[%clk 0:00:52]}  Qe7 {[%clk 0:00:20]} 30. e6 {[%clk 0:00:51]}  Rc5 {[%clk 0:00:12]} 31. h4 {[%clk 0:00:37]}  Rh5 {[%clk 0:00:11]} 32. exf7 {[%clk 0:00:35]}  Qe1+ {[%clk 0:00:11]} 33. Rf1 {[%clk 0:00:34]}  Qe6 {[%clk 0:00:08]} 34. Rf6 {[%clk 0:00:18]}  Qe1+ {[%clk 0:00:08]} 35. Rf1 {[%clk 0:00:15]}  Qxh4 {[%clk 0:00:08]} 36. Bg7 {[%clk 0:00:13]}  Rg5 {[%clk 0:00:02]} 37. Bxf8 {[%clk 0:00:13]}  Rxg2+ {[%clk 0:00:02]} 38. Kxg2 {[%clk 0:00:14]}  Qg4+ {[%clk 0:00:02]} 39. Kf2 {[%clk 0:00:14]}  Qf4+ {[%clk 0:00:01]} 40. Ke2 {[%clk 0:00:15]}  Qe4+ {[%clk 0:00:01]} 41. Kd2 {[%clk 0:00:13]}  Qd3+ {[%clk 0:00:01]} 42. Ke1 {[%clk 0:00:12]}  Qe3+ {[%clk 0:00:02]} 43. Kd1 {[%clk 0:00:13]}  Qd3+ {[%clk 0:00:02]} 44. Kc1 {[%clk 0:00:13]}  Qe3+ {[%clk 0:00:02]} 45. Kc2 {[%clk 0:00:14]}  Qe2+ {[%clk 0:00:02]} 46. Kc1 {[%clk 0:00:13]}  Qxf1+ {[%clk 0:00:03]} 47. Kc2 {[%clk 0:00:14]}  Qxf7 {[%clk 0:00:03]} 48. Kc1 {[%clk 0:00:15]}  g5 {[%clk 0:00:04]} 49. Bg7 {[%clk 0:00:14]}  g4 {[%clk 0:00:05]} 50. Bd4 {[%clk 0:00:14]}  Qf3 {[%clk 0:00:05]} 51. b3 {[%clk 0:00:13]}  g3 {[%clk 0:00:06]} 52. bxc4 {[%clk 0:00:13]}  g2 {[%clk 0:00:07]} 53. c5 {[%clk 0:00:12]}  Qf1+ {[%clk 0:00:08]} 54. Kb2 {[%clk 0:00:13]}  g1=Q {[%clk 0:00:09]} 55. Bxg1 {[%clk 0:00:13]}  Qxg1 {[%clk 0:00:10]} 56. cxb6 {[%clk 0:00:14]}  Qxb6+ {[%clk 0:00:10]} 57. Kc2 {[%clk 0:00:15]}  Qc6 {[%clk 0:00:11]} 58. c4 {[%clk 0:00:16]}  a5 {[%clk 0:00:12]} 59. Kb2 {[%clk 0:00:17]}  Qc5 {[%clk 0:00:12]} 60. Kb3 {[%clk 0:00:17]}  Qb4+ {[%clk 0:00:12]} 61. Kc2 {[%clk 0:00:15]}  Qxc4+ {[%clk 0:00:13]} 62. Kb2 {[%clk 0:00:16]}  Qb4+ {[%clk 0:00:13]} 63. Kc2 {[%clk 0:00:17]}  Qa3 {[%clk 0:00:13]} 64. Kd2 {[%clk 0:00:16]}  Kxh6 {[%clk 0:00:13]} 65. Ke2 {[%clk 0:00:16]}  Qxa2+ {[%clk 0:00:14]} 66. Kf3 {[%clk 0:00:17]}  Qe6 {[%clk 0:00:14]} 67. Kg2 {[%clk 0:00:16]}  a4 {[%clk 0:00:15]} 68. Kh2 {[%clk 0:00:17]}  a3 {[%clk 0:00:16]} 69. Kg2 {[%clk 0:00:17]}  a2 {[%clk 0:00:16]} 70. Kh2 {[%clk 0:00:18]}  a1=Q {[%clk 0:00:16]} 71. Kg3 {[%clk 0:00:19]}  Qae5+ {[%clk 0:00:16]} 72. Kh4 {[%clk 0:00:20]}  Qf4# {[%clk 0:00:15]} 0-1


[Site "https://www.chess.com"]

[Event "Titled Tuesday Blitz May 4 2021"]
[White "Rakotomaharo, Fy Antenaina"]
[Black "Buksa, Nataliya"]
[WhiteFideId "13100050"]
[BlackFideId "14123622"]
[WhiteElo "2378"]
[BlackElo "2214"]
[Result "0-1"]
[Round "07"]
[TimeControl "180+1"]
[Date "2021.05.04"]
[WhiteClock "0:00:08"]
[BlackClock "0:00:26"]

1. e4 {[%clk 0:03:00]}  c5 {[%clk 0:02:49]} 2. Nf3 {[%clk 0:03:00]}  Nc6 {[%clk 0:02:50]} 3. Bb5 {[%clk 0:03:00]}  g6 {[%clk 0:02:50]} 4. Bxc6 {[%clk 0:03:00]}  dxc6 {[%clk 0:02:51]} 5. d3 {[%clk 0:03:00]}  Bg7 {[%clk 0:02:52]} 6. h3 {[%clk 0:02:59]}  Nf6 {[%clk 0:02:51]} 7. O-O {[%clk 0:02:58]}  Nd7 {[%clk 0:02:52]} 8. Nc3 {[%clk 0:02:57]}  e5 {[%clk 0:02:52]} 9. Be3 {[%clk 0:02:57]}  b6 {[%clk 0:02:53]} 10. a3 {[%clk 0:02:56]}  Nf8 {[%clk 0:02:52]} 11. b4 {[%clk 0:02:55]}  Ne6 {[%clk 0:02:52]} 12. Qd2 {[%clk 0:02:53]}  f5 {[%clk 0:02:49]} 13. Bh6 {[%clk 0:02:51]}  Qf6 {[%clk 0:02:42]} 14. Bxg7 {[%clk 0:02:49]}  Qxg7 {[%clk 0:02:42]} 15. exf5 {[%clk 0:02:47]}  gxf5 {[%clk 0:02:42]} 16. Rfe1 {[%clk 0:02:34]}  Rg8 {[%clk 0:02:28]} 17. g3 {[%clk 0:02:30]}  Bd7 {[%clk 0:02:12]} 18. Nxe5 {[%clk 0:02:26]}  f4 {[%clk 0:02:11]} 19. g4 {[%clk 0:02:13]}  h5 {[%clk 0:02:10]} 20. Qe2 {[%clk 0:01:35]}  hxg4 {[%clk 0:02:06]} 21. hxg4 {[%clk 0:01:34]}  O-O-O {[%clk 0:02:03]} 22. Nxd7 {[%clk 0:01:28]}  Qxg4+ {[%clk 0:02:01]} 23. Qxg4 {[%clk 0:01:28]}  Rxg4+ {[%clk 0:02:02]} 24. Kf1 {[%clk 0:01:25]}  Kxd7 {[%clk 0:02:02]} 25. Ne4 {[%clk 0:01:25]}  Rh4 {[%clk 0:01:53]} 26. bxc5 {[%clk 0:01:18]}  f3 {[%clk 0:01:32]} 27. Ng3 {[%clk 0:01:18]}  Rdh8 {[%clk 0:01:31]} 28. Kg1 {[%clk 0:01:16]}  Nf4 {[%clk 0:01:28]} 29. Re3 {[%clk 0:00:58]}  Nh3+ {[%clk 0:01:07]} 30. Kf1 {[%clk 0:00:53]}  Ng5 {[%clk 0:01:07]} 31. Kg1 {[%clk 0:00:53]}  Rh2 {[%clk 0:01:07]} 32. Rae1 {[%clk 0:00:38]}  Rg2+ {[%clk 0:01:02]} 33. Kf1 {[%clk 0:00:37]}  Rhh2 {[%clk 0:00:31]} 34. Re7+ {[%clk 0:00:36]}  Kc8 {[%clk 0:00:32]} 35. R1e5 {[%clk 0:00:22]}  Rxf2+ {[%clk 0:00:31]} 36. Ke1 {[%clk 0:00:22]}  Rxc2 {[%clk 0:00:32]} 37. Kd1 {[%clk 0:00:20]}  Rhd2+ {[%clk 0:00:30]} 38. Ke1 {[%clk 0:00:20]}  f2+ {[%clk 0:00:28]} 39. Kf1 {[%clk 0:00:19]}  Rc1+ {[%clk 0:00:28]} 40. Re1 {[%clk 0:00:08]}  fxe1=Q+ {[%clk 0:00:26]} 0-1


[Site "https://www.chess.com"]

[Event "Titled Tuesday Blitz May 4 2021"]
[White "Real De Azua, Ernesto"]
[Black "Hess, Robert"]
[WhiteFideId "108154"]
[BlackFideId "2022036"]
[WhiteElo "2476"]
[BlackElo "2557"]
[Result "0-1"]
[Round "07"]
[TimeControl "180+1"]
[Date "2021.05.04"]
[WhiteClock "0:00:03"]
[BlackClock "0:00:06"]

1. e4 {[%clk 0:03:00]}  g6 {[%clk 0:03:00]} 2. d4 {[%clk 0:02:59]}  Bg7 {[%clk 0:03:01]} 3. Nc3 {[%clk 0:02:56]}  a6 {[%clk 0:03:01]} 4. f4 {[%clk 0:02:51]}  e6 {[%clk 0:03:01]} 5. Be3 {[%clk 0:02:48]}  b5 {[%clk 0:02:59]} 6. Bd3 {[%clk 0:02:47]}  Bb7 {[%clk 0:02:59]} 7. Nf3 {[%clk 0:02:39]}  f5 {[%clk 0:02:54]} 8. e5 {[%clk 0:02:21]}  Ne7 {[%clk 0:02:46]} 9. O-O {[%clk 0:02:13]}  Nbc6 {[%clk 0:02:45]} 10. a3 {[%clk 0:02:01]}  h6 {[%clk 0:01:47]} 11. Be2 {[%clk 0:01:48]}  b4 {[%clk 0:01:35]} 12. Na4 {[%clk 0:01:39]}  d6 {[%clk 0:01:29]} 13. c3 {[%clk 0:01:24]}  bxc3 {[%clk 0:01:10]} 14. Nxc3 {[%clk 0:01:13]}  Qd7 {[%clk 0:00:55]} 15. Rc1 {[%clk 0:01:01]}  Nd8 {[%clk 0:00:50]} 16. Qb3 {[%clk 0:00:39]}  Nd5 {[%clk 0:00:38]} 17. Nxd5 {[%clk 0:00:34]}  Bxd5 {[%clk 0:00:38]} 18. Bc4 {[%clk 0:00:34]}  c6 {[%clk 0:00:29]} 19. Bxd5 {[%clk 0:00:29]}  exd5 {[%clk 0:00:23]} 20. exd6 {[%clk 0:00:28]}  Qxd6 {[%clk 0:00:22]} 21. Ne5 {[%clk 0:00:28]}  O-O {[%clk 0:00:21]} 22. Qc2 {[%clk 0:00:20]}  Rc8 {[%clk 0:00:16]} 23. Bd2 {[%clk 0:00:19]}  Rf6 {[%clk 0:00:07]} 24. Bb4 {[%clk 0:00:18]}  Qc7 {[%clk 0:00:07]} 25. Qd3 {[%clk 0:00:16]}  Qb7 {[%clk 0:00:07]} 26. Rfe1 {[%clk 0:00:13]}  Ne6 {[%clk 0:00:07]} 27. g3 {[%clk 0:00:09]}  a5 {[%clk 0:00:08]} 28. Bc3 {[%clk 0:00:08]}  a4 {[%clk 0:00:08]} 29. Nf3 {[%clk 0:00:08]}  Bf8 {[%clk 0:00:07]} 30. Re2 {[%clk 0:00:08]}  Nc7 {[%clk 0:00:07]} 31. Rce1 {[%clk 0:00:07]}  Nb5 {[%clk 0:00:08]} 32. Re6 {[%clk 0:00:06]}  Rxe6 {[%clk 0:00:07]} 33. Rxe6 {[%clk 0:00:07]}  Qf7 {[%clk 0:00:07]} 34. Re1 {[%clk 0:00:05]}  Nd6 {[%clk 0:00:06]} 35. Ne5 {[%clk 0:00:05]}  Qg7 {[%clk 0:00:05]} 36. Qa6 {[%clk 0:00:04]}  Qc7 {[%clk 0:00:04]} 37. Nxg6 {[%clk 0:00:03]}  Ne4 {[%clk 0:00:04]} 38. Ne5 {[%clk 0:00:03]}  Bd6 {[%clk 0:00:04]} 39. Qd3 {[%clk 0:00:03]}  Kh7 {[%clk 0:00:04]} 40. Bb4 {[%clk 0:00:02]}  Rg8 {[%clk 0:00:04]} 41. Bxd6 {[%clk 0:00:02]}  Qxd6 {[%clk 0:00:05]} 42. Kg2 {[%clk 0:00:02]}  h5 {[%clk 0:00:05]} 43. Rc1 {[%clk 0:00:02]}  Qb8 {[%clk 0:00:03]} 44. Rxc6 {[%clk 0:00:01]}  Qxb2+ {[%clk 0:00:03]} 45. Rc2 {[%clk 0:00:02]}  Qb3 {[%clk 0:00:03]} 46. Qe2 {[%clk 0:00:02]}  Kh6 {[%clk 0:00:02]} 47. Nf7+ {[%clk 0:00:01]}  Kg7 {[%clk 0:00:02]} 48. Ne5 {[%clk 0:00:02]}  Kf8 {[%clk 0:00:02]} 49. Rc7 {[%clk 0:00:03]}  Rxg3+ {[%clk 0:00:02]} 50. hxg3 {[%clk 0:00:02]}  Qxg3+ {[%clk 0:00:03]} 51. Kf1 {[%clk 0:00:03]}  Qxf4+ {[%clk 0:00:04]} 52. Qf3 {[%clk 0:00:03]}  Nd2+ {[%clk 0:00:03]} 53. Ke2 {[%clk 0:00:03]}  Nxf3 {[%clk 0:00:04]} 54. Rc8+ {[%clk 0:00:03]}  Ke7 {[%clk 0:00:04]} 55. Nxf3 {[%clk 0:00:04]}  Qe4+ {[%clk 0:00:04]} 56. Kf2 {[%clk 0:00:04]}  h4 {[%clk 0:00:05]} 57. Rc7+ {[%clk 0:00:04]}  Kd8 {[%clk 0:00:05]} 58. Rh7 {[%clk 0:00:04]}  Qc2+ {[%clk 0:00:05]} 59. Ke3 {[%clk 0:00:03]}  f4+ {[%clk 0:00:06]} 0-1


[Site "https://www.chess.com"]